Cogmind - Beta 9.6 @@@ ROGUE MODE // 2020.05.11 @ 02:41:26 Player: Decinym Result: Destroyed by Z-Imprinter with Zionite Laser-M Performance ------------- Evolutions (3) 1500 Regions Visited (12) 2400 Robots Destroyed (85) 425 Value Destroyed (1753) 1753 Prototype IDs (35) 700 Alien Tech Used (0) 0 Bonus (903) 903 TOTAL SCORE: 7681 Bonus ------- Follower Combat Kills 337 Aligned with FarCom 300 Met Imprinter 300 Friendly Fire -34 Cogmind --------- Core Integrity 0/700 Matter 280/300 Energy 82/100 System Corruption 0% Temperature Cool (329) Movement Flying (105) Ox1 Location -7/Deep Caves Parts ------- > --- POWER (2) -------- Zionite Light DM Reactor > --- PROPULSION (3) --- Improved Flight Unit > --- UTILITY (6) ------ Medium Storage Unit Advanced Weight Redist. System Hacking Suite Makeshift Hacking Suite > --- WEAPON (2) ------- Lightning Gun Lightning Gun > --- INVENTORY (8) ---- Improved Heat Sink Improved Light Armor Plating Makeshift System Shield Rocket Array Peak State ------------ > --- POWER ------------ Enhanced Nuclear Core Enhanced Nuclear Core > --- PROPULSION ------- Improved Flight Unit Improved Flight Unit Improved Flight Unit > --- UTILITY ---------- Medium Storage Unit Advanced Weight Redist. System Improved Light Armor Plating Hacking Suite Hacking Suite Hacking Suite > --- WEAPON ----------- Rocket Array > --- INVENTORY -------- Improved Flight Unit Improved Heat Sink Improved Heat Sink Long-range Sensor Array Lightning Gun Lightning Gun Precision Grenade Launcher Spear [Rating: 43] Favorites ----------- Power Enhanced Nuclear Core Engine Light Ion Engine Power Core Enhanced Nuclear Core Reactor Zionite Light DM Reactor Propulsion Aluminum Leg Leg Aluminum Leg Flight Unit Improved Flight Unit Utility Hacking Suite Device Improved Heat Sink Storage High-capacity Storage Unit Processor Signal Interpreter Hackware Hacking Suite Protection Light Armor Plating Weapon Assault Rifle Energy Gun Small Laser Energy Cannon Advanced Beam Cannon Ballistic Gun Assault Rifle Launcher Mini Grenade Launcher Piercing Weapon Spear Build | -11 -10 -10 -9 -9 -9 -8 -8 -7 -7 -7 -7 -7 ------- Run | Scr Mat Min Mat Min Exi Min Mat Fac Low Low Zio Dee Slots Evolved 6 | . . . 2 . . . 2 2 . . . . Power 1 | . . . . . . . . 1 . . . . Propulsion 1 | . . . 1 . . . . . . . . . Utility 4 | . . . 1 . . . 2 1 . . . . Weapon . | . . . . . . . . . . . . . Parts Attached 97 | . 8 10 32 10 . 1 4 15 . 4 6 7 Power 13 | . 2 1 3 . . 1 . 3 . 1 . 2 Engine 5 | . 2 . 2 . . . . 1 . . . . Core 6 | . . 1 1 . . 1 . 2 . 1 . . Reactor 2 | . . . . . . . . . . . . 2 Propulsion 19 | . 2 2 10 3 . . . 1 . . . 1 Treads . | . . . . . . . . . . . . . Leg 13 | . 2 2 9 . . . . . . . . . Wheel . | . . . . . . . . . . . . . Hover . | . . . . . . . . . . . . . Flight 6 | . . . 1 3 . . . 1 . . . 1 Utility 19 | . 1 1 5 1 . . 3 3 . 2 3 . Device 6 | . . . 2 . . . . 1 . 1 2 . Storage 3 | . 1 . . 1 . . . 1 . . . . Processor 2 | . . 1 . . . . 1 . . . . . Hackware 4 | . . . . . . . 2 1 . . 1 . Protection 4 | . . . 3 . . . . . . 1 . . Artifact . | . . . . . . . . . . . . . Weapon 46 | . 3 6 14 6 . . 1 8 . 1 3 4 Energy Gun 16 | . 1 . 5 . . . . 6 . . . 4 Energy Cannon 8 | . . . 4 3 . . 1 . . . . . Ballistic Gun 7 | . 1 3 3 . . . . . . . . . Ballistic Cannon . | . . . . . . . . . . . . . Launcher 13 | . 1 3 2 3 . . . 2 . 1 1 . Special Weapon . | . . . . . . . . . . . . . Impact Weapon . | . . . . . . . . . . . . . Slashing Weapon . | . . . . . . . . . . . . . Piercing Weapon 2 | . . . . . . . . . . . 2 . Special Melee Weapon . | . . . . . . . . . . . . . Unidentified Prototypes 13 | . . . 4 . . . . 6 . . 1 2 Parts Lost 23 | . 1 . 5 5 . . 1 2 . . . 9 Power 3 | . 1 . . . . . . 1 . . . 1 Propulsion 7 | . . . 1 3 . . . . . . . 3 Utility 5 | . . . 2 1 . . . . . . . 2 Weapon 8 | . . . 2 1 . . 1 1 . . . 3 Highest Loss Streak 9 | . 1 . 3 5 . . 1 2 . . . 9 Average Slot Usage (%) 88 | . 83 95 94 89 77 77 81 72 69 77 87 85 Engine 6 | . 13 12 6 11 11 . . . . . . . Core 5 | . . 1 4 . . 11 9 7 7 11 15 12 Leg 19 | . 27 28 32 18 . . . . . . . . Flight 8 | . . . . 11 33 33 27 23 23 23 23 18 Device 5 | . . . 4 18 11 11 9 9 7 7 10 14 Storage 10 | . 14 14 11 11 11 11 9 7 7 7 7 7 Processor 4 | . . 10 6 . . . 3 1 . . . . Hackware 6 | . . . . . . . 14 21 23 23 23 23 Protection 2 | . . . 6 . . . . . . 3 4 . Energy Gun 2 | . 5 . 7 . . . . . . . . 1 Energy Cannon 3 | . . . 7 14 . . 1 . . . . . Ballistic Gun 8 | . 22 23 4 . . . . . . . . . Launcher 2 | . . 4 1 3 11 11 7 . . 1 . . Naked Turns . | . . . . . . . . . . . . . Heaviest Build 52 | 10 38 42 52 50 18 18 15 19 17 27 29 27 Greatest Support 35 | 20 20 20 35 35 18 18 18 18 18 27 27 27 Greatest Overweight (x) 3 | . 3 2 2 1 . . . 1 . . 1 . Average Overweight (x) . | . . 1 1 . . . . . . . . . Largest Inventory Capacity 16 | . 14 12 12 16 8 8 8 8 8 8 8 8 Average Capacity 10 | . 9 12 12 10 8 8 8 8 8 8 8 8 Most Carried 12 | . 8 12 12 12 8 8 8 8 8 8 8 7 Average Carried 9 | . 6 11 11 9 6 8 7 7 8 7 7 6 Final Capacity 12 | 6 12 12 12 8 8 8 8 8 8 8 8 8 Final Carried 12 | 6 8 12 12 6 8 8 8 8 8 7 7 4 Class Distribution -------------------- 34% | Mutant 30% | Scavenger-Mutant 30% | Hacker-Sprinter 4% | Sprinter Dominant Class ---------------- Mutant | -10/Materials Mutant | -10/Mines Scavenger-Mutant | -9/Materials Scavenger-Mutant | -9/Mines Sprinter | -9/Exiles Sprinter | -8/Mines Sprinter | -8/Materials Hacker-Sprinter | -7/Factory Hacker-Sprinter | -7/Lower Caves Hacker-Sprinter | -7/Lower Caves Hacker-Sprinter | -7/Zion Hacker-Sprinter | -7/Deep Caves Resources | -11 -10 -10 -9 -9 -9 -8 -8 -7 -7 -7 -7 -7 ----------- Run | Scr Mat Min Mat Min Exi Min Mat Fac Low Low Zio Dee Matter Collected 1568 | 200 187 190 474 155 . . . 201 10 27 99 25 Remotely . | . . . . . . . . . . . . . Salvage Created 2173 | . 294 120 1267 142 . . . 213 . 19 . 118 Parts 146 | . 23 7 84 16 . . . 10 . . . 6 Haulers Intercepted 7 | . . . 5 . . . . 2 . . . . Recyclers Shooed 1 | . . . 1 . . . . . . . . . Parts Field Recycled . | . . . . . . . . . . . . . Retrieved Matter . | . . . . . . . . . . . . . Parts Self-Destructed . | . . . . . . . . . . . . . Prevented . | . . . . . . . . . . . . . Kills | -11 -10 -10 -9 -9 -9 -8 -8 -7 -7 -7 -7 -7 ------- Run | Scr Mat Min Mat Min Exi Min Mat Fac Low Low Zio Dee Combat Hostiles Destroyed 67 | . 7 6 28 19 . . . 2 . 3 . 2 Melee 1 | . . . . . . . . . . . . 1 Guns 26 | . 4 3 16 . . . . 2 . . . 1 Cannons 12 | . . . 5 7 . . . . . . . . AOE 28 | . 3 3 7 12 . . . . . 3 . . Classes Destroyed 11 | . 6 1 3 . . . . . . . . 1 Worker 2 | . . . 2 . . . . . . . . . Builder 2 | . 1 . . 1 . . . . . . . . Hauler 7 | . . . 5 . . . . 2 . . . . Recycler 2 | . 1 . . 1 . . . . . . . . Operator 4 | . 1 . 3 . . . . . . . . . Watcher 1 | . 1 . . . . . . . . . . . Swarmer 26 | . 3 2 7 11 . . . . . 3 . . Grunt 24 | . 4 3 15 . . . . 2 . . . . Sentry 6 | . . . 6 . . . . . . . . . Z-Light 2 | . . . . . . . . . . . . 2 Assembled 9 | . . 1 . 8 . . . . . . . . Best Kill Streak 8 | . 7 2 7 8 . . . 3 . 3 . 2 Combat Bots Only 8 | . 4 2 7 8 . . . 2 . 3 . 2 Max Kills in Single Turn 5 | . 3 2 3 5 . . . 1 . 2 . 1 Gunslinging . | . . . . . . . . . . . . . Exploded 4 | . 2 2 3 4 . . . . . 2 . . Melee 1 | . . . . . . . . . . . . 1 Uniques/NPCs Destroyed . | . . . . . . . . . . . . . Combat | -11 -10 -10 -9 -9 -9 -8 -8 -7 -7 -7 -7 -7 -------- Run | Scr Mat Min Mat Min Exi Min Mat Fac Low Low Zio Dee Damage Taken 3946 | . 335 198 1227 607 . . 74 162 . 141 . 1202 Core 1083 | . 35 . 172 138 . . 14 60 . 55 . 609 Absorbed by Shields . | . . . . . . . . . . . . . Core Remaining (%) 76 | 100 . 86 . . . 22 97 . . . . . Volleys Fired 179 | . 29 17 89 25 . . . 7 . 2 . 10 Largest 2 | . 2 2 2 2 . . . 2 . 1 . 2 Hottest 136 | . 40 40 136 136 . . . 110 . 36 . 110 Shots Fired 316 | . 55 26 166 42 . . . 10 . 2 . 15 Gun 207 | . 52 18 113 . . . . 9 . . . 15 Cannon 85 | . . . 50 35 . . . . . . . . Launcher 24 | . 3 8 3 7 . . . 1 . 2 . . Special . | . . . . . . . . . . . . . Kinetic 106 | . 52 18 36 . . . . . . . . . Thermal 167 | . . . 127 35 . . . . . . . 5 Explosive 24 | . 3 8 3 7 . . . 1 . 2 . . Electromagnetic 19 | . . . . . . . . 9 . . . 10 Robot Hit Streak 12 | . 6 6 12 4 . . . 3 . 5 . 6 Robot Miss Streak 6 | . 2 3 6 3 . . . 2 . . . 3 Penetration Max . | . . . . . . . . . . . . . Secondary Targets 1 | . . . 1 . . . . . . . . . Max Gunslinging Chain 1 | . . . 1 . . . . . . . . . Shots Hit Robots 199 | . 36 13 109 20 . . . 6 . 2 . 13 Core Hits 136 | . 21 15 53 32 . . . 5 . 3 . 7 Critical Hits 5 | . . 1 3 1 . . . . . . . . Critical Kills 1 | . . 1 . . . . . . . . . . Critical Parts Destroyed 3 | . . . 2 1 . . . . . . . . Melee Attacks 33 | . . . . . . . . . . . 25 8 Impact . | . . . . . . . . . . . . . Slashing . | . . . . . . . . . . . . . Piercing 33 | . . . . . . . . . . . 25 8 Sneak Attacks . | . . . . . . . . . . . . . Combat Hostiles . | . . . . . . . . . . . . . Follow-up Attacks . | . . . . . . . . . . . . . Damage Inflicted 5533 | . 873 340 2125 1337 . . . 271 . 354 . 233 Guns 1768 | . 377 144 1028 . . . . 150 . . . 69 Cannons 1000 | . . . 693 307 . . . . . . . . Explosions 2601 | . 496 196 404 1030 . . . 121 . 354 . . Melee 164 | . . . . . . . . . . . . 164 Ramming . | . . . . . . . . . . . . . Kinetic 824 | . 377 144 303 . . . . . . . . . Thermal 1992 | . 204 . 1418 307 . . . . . . . 63 Explosive 2397 | . 292 196 404 1030 . . . 121 . 354 . . Electromagnetic 156 | . . . . . . . . 150 . . . 6 Impact . | . . . . . . . . . . . . . Slashing . | . . . . . . . . . . . . . Piercing 164 | . . . . . . . . . . . . 164 Highest Corruption . | . . . . . . . . . . . . . Average Corruption . | . . . . . . . . . . . . . Corruption Purged . | . . . . . . . . . . . . . Overload Shots . | . . . . . . . . . . . . . Overflow Damage 74 | . 31 . . 43 . . . . . . . . Projectiles 1 | . . . . 1 . . . . . . . . Explosions 73 | . 31 . . 42 . . . . . . . . Melee . | . . . . . . . . . . . . . Knockbacks . | . . . . . . . . . . . . . Impact . | . . . . . . . . . . . . . Kinetic . | . . . . . . . . . . . . . Secondary . | . . . . . . . . . . . . . Self-Inflicted Damage 155 | . . 85 29 41 . . . . . . . . Shots 7 | . . 3 3 1 . . . . . . . . Rammed . | . . . . . . . . . . . . . Targets Rammed . | . . . . . . . . . . . . . Kicked . | . . . . . . . . . . . . . Crushed . | . . . . . . . . . . . . . Highest Temperature 312 | . 31 25 312 198 . . . 117 . 2 . 311 Average Temperature 84 | . 15 12 92 91 . . . 58 . 1 . 88 Received Heat Transfer 1174 | . 165 82 501 12 . . 36 51 . 6 . 321 Siege Activations . | . . . . . . . . . . . . . Robots Corrupted . | . . . . . . . . . . . . . Combat Hostiles . | . . . . . . . . . . . . . Parts Fried . | . . . . . . . . . . . . . Impact Corruptions . | . . . . . . . . . . . . . Robots Melted . | . . . . . . . . . . . . . Combat Hostiles . | . . . . . . . . . . . . . Parts Melted 6 | . . . 5 1 . . . . . . . . Heat Transferred 3786 | . 150 . 2970 555 . . . . . . . 111 Parts Sabotaged . | . . . . . . . . . . . . . Parts Stolen . | . . . . . . . . . . . . . Parts Stripped . | . . . . . . . . . . . . . Power Chain Reactions . | . . . . . . . . . . . . . Missiles Intercepted . | . . . . . . . . . . . . . Alert | -11 -10 -10 -9 -9 -9 -8 -8 -7 -7 -7 -7 -7 ------- Run | Scr Mat Min Mat Min Exi Min Mat Fac Low Low Zio Dee Peak Influence 347 | . 167 136 347 316 . . 30 302 . . . . Average Influence 138 | . 43 68 184 251 . . 13 223 . . . . Maximum Alert Level 1 | . . . 1 1 . . . 1 . . . . Low Security (%) 65 | . 100 100 49 22 . 100 100 18 . . . . Level 1 34 | . . . 50 77 . . . 81 . . . . Level 2 . | . . . . . . . . . . . . . Level 3 . | . . . . . . . . . . . . . Level 4 . | . . . . . . . . . . . . . Level 5 . | . . . . . . . . . . . . . High Security . | . . . . . . . . . . . . . Max Security . | . . . . . . . . . . . . . Squads Dispatched 11 | . 1 . 4 . . . 1 5 . . . . Investigation 2 | . . . . . . . 1 1 . . . . Extermination 1 | . . . . . . . . 1 . . . . Reinforcement 5 | . 1 . 4 . . . . . . . . . Assault . | . . . . . . . . . . . . . Garrison 3 | . . . . . . . . 3 . . . . Intercept . | . . . . . . . . . . . . . Construction Impeded 1 | . . . 1 . . . . . . . . . Haulers Reinforced . | . . . . . . . . . . . . . Stealth | -11 -10 -10 -9 -9 -9 -8 -8 -7 -7 -7 -7 -7 --------- Run | Scr Mat Min Mat Min Exi Min Mat Fac Low Low Zio Dee Distress Signals 5 | . 2 . 3 . . . . . . . . . Communications Jammed . | . . . . . . . . . . . . . Distress Signals . | . . . . . . . . . . . . . Times Spotted 110 | . 12 9 37 25 . . 4 11 . 9 . 3 Peak Tracking Total 12 | . 5 3 7 12 . . 4 3 . 5 . 3 Tactical Retreats 6 | . . 1 . 3 . . . 1 . 1 . . Traps | -11 -10 -10 -9 -9 -9 -8 -8 -7 -7 -7 -7 -7 ------- Run | Scr Mat Min Mat Min Exi Min Mat Fac Low Low Zio Dee Traps Triggered 4 | . 1 . . . . . 1 2 . . . . Indirectly . | . . . . . . . . . . . . . Trap Hack Attempts . | . . . . . . . . . . . . . Triggered . | . . . . . . . . . . . . . Disarmed . | . . . . . . . . . . . . . Reprogrammed . | . . . . . . . . . . . . . Reused . | . . . . . . . . . . . . . Traps Extracted . | . . . . . . . . . . . . . Installed . | . . . . . . . . . . . . . Triggered 8 | . . . . . . . . . . 8 . . Machines | -11 -10 -10 -9 -9 -9 -8 -8 -7 -7 -7 -7 -7 ---------- Run | Scr Mat Min Mat Min Exi Min Mat Fac Low Low Zio Dee Machines Disabled 6 | . 2 . 2 1 . . . 1 . . . . Max in Single Turn 2 | . 2 . 1 1 . . . 1 . . . . Machines Sabotaged . | . . . . . . . . . . . . . Garrisons Compromised . | . . . . . . . . . . . . . Overloaded Fab Kills . | . . . . . . . . . . . . . Fab Network Shutdowns . | . . . . . . . . . . . . . Hacking | -11 -10 -10 -9 -9 -9 -8 -8 -7 -7 -7 -7 -7 --------- Run | Scr Mat Min Mat Min Exi Min Mat Fac Low Low Zio Dee Machines Accessed 16 | . 3 . 7 . 2 . . 4 . . . . Terminals 9 | . 3 . 5 . . . . 1 . . . . Fabricators 2 | . . . . . . . . 2 . . . . Repair Stations 1 | . . . 1 . . . . . . . . . Recycling Units . | . . . . . . . . . . . . . Scanalyzers 1 | . . . 1 . . . . . . . . . Garrison Access 1 | . . . . . . . . 1 . . . . Total Hacks 61 | . 13 . 33 . 7 . . 8 . . . . Successful 41 | . 9 . 19 . 7 . . 6 . . . . Failed 20 | . 4 . 14 . . . . 2 . . . . Catastrophic 2 | . 1 . 1 . . . . . . . . . Database Lockouts . | . . . . . . . . . . . . . Manual 28 | . 9 . 15 . 1 . . 2 . . 1 . Terminals 32 | . 13 . 17 . . . . 2 . . . . Fabricators 5 | . . . . . . . . 5 . . . . Repair Stations 8 | . . . 8 . . . . . . . . . Recycling Units . | . . . . . . . . . . . . . Scanalyzers 8 | . . . 8 . . . . . . . . . Garrison Access 1 | . . . . . . . . 1 . . . . Terminal Hacks 17 | . 8 . 2 . 7 . . . . . . . Record 6 | . . . . . 6 . . . . . . . Branch Access Points 1 | . 1 . . . . . . . . . . . Alert Level 2 | . 1 . 1 . . . . . . . . . Unreport Threat 4 | . 3 . 1 . . . . . . . . . Maintenance Status 1 | . 1 . . . . . . . . . . . Zone Layout 2 | . 2 . . . . . . . . . . . EX-Prototype ID Bank 1 | . . . . . 1 . . . . . . . Fabricator Hacks 4 | . . . . . . . . 4 . . . . Load Schematic 2 | . . . . . . . . 2 . . . . Build 2 | . . . . . . . . 2 . . . . Repair Station Hacks 6 | . . . 6 . . . . . . . . . Scan Component 3 | . . . 3 . . . . . . . . . Repair 3 | . . . 3 . . . . . . . . . Recycling Unit Hacks . | . . . . . . . . . . . . . Scanalyzer 8 | . . . 8 . . . . . . . . . Insert Component 4 | . . . 4 . . . . . . . . . Analyze 4 | . . . 4 . . . . . . . . . Garrison Access Hacks . | . . . . . . . . . . . . . Unauthorized Hacks 6 | . 1 . 3 . . . . 2 . . . . Terminals 4 | . 1 . 3 . . . . . . . . . Botnet 3 | . 1 . 2 . . . . . . . . . Operators 1 | . . . 1 . . . . . . . . . Fabricators 1 | . . . . . . . . 1 . . . . Siphon 1 | . . . . . . . . 1 . . . . Repair Stations . | . . . . . . . . . . . . . Recycling Units . | . . . . . . . . . . . . . Scanalyzers . | . . . . . . . . . . . . . Garrison Access 1 | . . . . . . . . 1 . . . . Reprogram 1 | . . . . . . . . 1 . . . . Data Cores Recovered . | . . . . . . . . . . . . . Used . | . . . . . . . . . . . . . Hacking Detections 13 | . 3 . 7 . . . . 3 . . . . Full Trace Events 1 | . . . . . . . . 1 . . . . Feedback Events . | . . . . . . . . . . . . . Feedback Blocked . | . . . . . . . . . . . . . Robot Schematics Acquired . | . . . . . . . . . . . . . Robots Built . | . . . . . . . . . . . . . Matter . | . . . . . . . . . . . . . Time . | . . . . . . . . . . . . . Total Robot Build Rating . | . . . . . . . . . . . . . Part Schematics Acquired 4 | . . . 4 . . . . . . . . . Parts Built 2 | . . . . . . . . 2 . . . . Matter 325 | . . . . . . . . 325 . . . . Time 98 | . . . . . . . . 98 . . . . Total Part Build Rating 4 | . . . . . . . . 4 . . . . Parts Repaired 3 | . . . 3 . . . . . . . . . Time 102 | . . . 102 . . . . . . . . . Parts Recycled . | . . . . . . . . . . . . . Recycled Matter . | . . . . . . . . . . . . . Retrieved Matter . | . . . . . . . . . . . . . Retrieved Components . | . . . . . . . . . . . . . Parts Scanalyzed 4 | . . . 4 . . . . . . . . . Part Schematics Acquired 4 | . . . 4 . . . . . . . . . Parts Damaged 1 | . . . 1 . . . . . . . . . Bothacking | -11 -10 -10 -9 -9 -9 -8 -8 -7 -7 -7 -7 -7 ------------ Run | Scr Mat Min Mat Min Exi Min Mat Fac Low Low Zio Dee Used RIF Installer . | . . . . . . . . . . . . . Robots Hacked . | . . . . . . . . . . . . . Non-combat . | . . . . . . . . . . . . . Combat . | . . . . . . . . . . . . . Robot Hacks Applied . | . . . . . . . . . . . . . Relay Couplers Released . | . . . . . . . . . . . . . Robots Rewired . | . . . . . . . . . . . . . Allies Hacked . | . . . . . . . . . . . . . Hacks Repelled . | . . . . . . . . . . . . . Allies | -11 -10 -10 -9 -9 -9 -8 -8 -7 -7 -7 -7 -7 -------- Run | Scr Mat Min Mat Min Exi Min Mat Fac Low Low Zio Dee Total Allies 17 | . . 4 . . . . . 5 . . 8 . Largest Group 8 | . . 3 . . . . . 3 . . 8 8 Highest-Rated Group 312 | . . 63 . . . . . 93 . . 312 312 Highest-Rated Ally 94 | . . 31 . . . . . 31 . . 94 94 Total Orders . | . . . . . . . . . . . . . Ally Attacks 100 | . . 27 . . . . . 33 . . . 40 Total Damage 1807 | . . 341 . . . . . 517 . . . 949 Kills 15 | . . 5 . . . . . 6 . . . 4 Allies Corrupted . | . . . . . . . . . . . . . Allies Melted . | . . . . . . . . . . . . . Intel | -11 -10 -10 -9 -9 -9 -8 -8 -7 -7 -7 -7 -7 ------- Run | Scr Mat Min Mat Min Exi Min Mat Fac Low Low Zio Dee Robot Analysis Total . | . . . . . . . . . . . . . Derelict Logs Recovered 3 | . . . . 1 . . . . . 2 . . Drone Launches . | . . . . . . . . . . . . . Drone Recoveries . | . . . . . . . . . . . . . Exploration | -11 -10 -10 -9 -9 -9 -8 -8 -7 -7 -7 -7 -7 ------------- Run | Scr Mat Min Mat Min Exi Min Mat Fac Low Low Zio Dee Turns Passed 4058 | . 442 802 1220 230 66 49 50 332 71 57 595 144 Spaces Moved 4972 | 1 243 447 513 289 222 162 136 793 243 164 1533 226 Core . | . . . . . . . . . . . . . Treads . | . . . . . . . . . . . . . Legs 1257 | 1 243 447 513 53 . . . . . . . . Wheels . | . . . . . . . . . . . . . Hover . | . . . . . . . . . . . . . Flight 3715 | . . . . 236 222 162 136 793 243 164 1533 226 Fastest Speed 29 | 120 120 150 150 29 29 29 29 29 29 29 29 29 Average Speed 59 | 120 136 151 150 51 29 29 29 29 29 29 29 29 Slowest Speed 210 | 120 210 180 180 150 29 29 29 99 29 29 99 35 Overloaded Moves . | . . . . . . . . . . . . . Propulsion Burnouts . | . . . . . . . . . . . . . Robots Hopped 24 | . . . . 6 . 4 1 11 1 1 . . Cave-ins Triggered . | . . . . . . . . . . . . . Exploration Rate (%) 44 | 2 48 68 47 53 60 49 25 27 52 40 86 22 Regions Visited 12 Branch Regions 8 Pre-discovered Areas 1 | . . . . . 1 . . . . . . . Known Exits Taken 3 | . 1 1 . . . . . . . 1 . . Unknown Exits Taken 9 | 1 . . 1 1 1 1 1 1 1 . 1 . Scrap Searched 11 | . . 2 . 1 . 1 . . 2 1 4 . Spaces Dug 6 | . . . . . . . . . . . 6 . Terrain Destroyed 224 | . 42 48 23 73 . . . 6 . 26 6 . Melee 6 | . . . . . . . . . . . 6 . Projectile 1 | . . . . 1 . . . . . . . . AOE 217 | . 42 48 23 72 . . . 6 . 26 . . Actions | -11 -10 -10 -9 -9 -9 -8 -8 -7 -7 -7 -7 -7 --------- Run | Scr Mat Min Mat Min Exi Min Mat Fac Low Low Zio Dee Total 5711 | . 304 550 802 321 222 159 146 876 241 169 1644 277 Wait 334 | . 13 54 125 1 . . . 46 . . 72 23 Move 4916 | . 242 446 512 278 221 154 134 770 240 161 1532 226 Hop 20 | . . . . 4 . 3 . 11 1 1 . . Pick Up 51 | . 6 12 17 . 1 . 4 8 . . 2 1 Fast Attach 37 | . 5 2 13 . . 1 2 8 . 1 2 3 Attach 30 | . 1 . 7 6 . . 2 5 . 2 3 4 Detach 12 | . 1 . 1 . . . 1 4 . 1 4 . Swap 31 | . 2 8 12 4 . . . 3 . 1 1 . Drop 68 | . 5 11 26 3 . 1 3 14 . . 3 2 Fire 179 | . 29 17 89 25 . . . 7 . 2 . 10 Melee 33 | . . . . . . . . . . . 25 8 Ram . | . . . . . . . . . . . . . Kick . | . . . . . . . . . . . . . Crush . | . . . . . . . . . . . . . Escape Stasis . | . . . . . . . . . . . . . Rewire . | . . . . . . . . . . . . . Trap . | . . . . . . . . . . . . . Miscellaneous . | . . . . . . . . . . . . . Route ------- -11/Scrapyard -10/Materials -10/Mines -9/Materials -9/Mines (discovered 2 exits: [*Mat] / *Exi) -9/Exiles (discovered 2 exits: [*Min x2]) -8/Mines -8/Materials -7/Factory -7/Lower Caves -7/Lower Caves (discovered 2 exits: [*Fac] / *Zio) -7/Zion (discovered 2 exits: [*Dee] / [*Pro]) -7/Deep Caves History --------- Turn | Location | Event 1 | -11/Scrapyard | Discovered new exit (range 0) 1 | -11/Scrapyard | Entered Materials 19 | -10/Materials | Identified exit to Mines 355 | -10/Materials | Build established: Mutant 443 | -10/Materials | Entered Mines 661 | -10/Mines | Assisted by bots powering up and referring to "LRC-V3" 961 | -10/Mines | Received a Mining Laser from a helpful Derelict 1176 | -10/Mines | Discovered new exit (range 7) 1184 | -10/Mines | Excavation squad dispatched 1184 | -10/Mines | A large section of the Mines collapsed 1243 | -10/Mines | Identified exit to Materials 1245 | -10/Mines | Entered Materials 1245 | -9/Materials | Evolved 2 slots: Propulsion x1, Utility x1 1369 | -9/Materials | Repaired Grenade Launcher 1409 | -9/Materials | Repaired Lgt. Nuclear Core 1453 | -9/Materials | Repaired Lgt. Nuclear Core 1546 | -9/Materials | Build established: Scavenger-Mutant 1585 | -9/Materials | Destroyed 7 combat bots 1594 | -9/Materials | Lost 3 parts (1n1u1w) 2319 | -9/Materials | Discovered new exit (range 6) 2465 | -9/Materials | Entered Mines 2472 | -9/Mines | Core integrity fell below 50% 2497 | -9/Mines | Discovered new exit (range 13) 2551 | -9/Mines | Assembled infested the area 2622 | -9/Mines | Destroyed 8 combat bots 2642 | -9/Mines | Lost 5 parts (3n1u1w) 2673 | -9/Mines | Learned 2 Materials zone layouts 2693 | -9/Mines | Deemed a non-threat by the Exiles lab entrance 2693 | -9/Mines | Discovered new exit (range 5) 2695 | -9/Mines | Entered Exiles 2700 | -9/Exiles | Discovered new exit (range 15) 2703 | -9/Exiles | Met 8R-AWN 2708 | -9/Exiles | Met EX-HEX 2716 | -9/Exiles | Met EX-BIN 2722 | -9/Exiles | Aligned with FarCom system 2723 | -9/Exiles | Given EX-Vault access code 2730 | -9/Exiles | Opened EX-Vault 2732 | -9/Exiles | Found Firepult 2739 | -9/Exiles | Warned to stay clear of 0b10 Research branches 2748 | -9/Exiles | Met EX-DEC 2750 | -9/Exiles | Learned location of Zion (-7) 2758 | -9/Exiles | Discovered new exit (range 10) 2761 | -9/Exiles | Left Exiles lab with Firepult 2761 | -9/Exiles | Entered Mines 2808 | -8/Mines | Discovered new exit (range 8) 2810 | -8/Mines | Entered Materials 2810 | -8/Materials | Evolved 2 slots: Utility x2 2856 | -8/Materials | Discovered new exit (range 16) 2860 | -8/Materials | Entered Factory 2860 | -7/Factory | Evolved 2 slots: Power x1, Utility x1 2888 | -7/Factory | Allied Derelicts emerged from ambush trap array 2900 | -7/Factory | Garrison activated, responded to threat 2942 | -7/Factory | Fabricated Imp. Flight Unit (x1) 3117 | -7/Factory | Build established: Hacker-Sprinter 3143 | -7/Factory | Fabricated Imp. Flight Unit (x1) 3182 | -7/Factory | Discovered new exit (range 16) 3192 | -7/Factory | Entered Lower Caves 3256 | -7/Lower Caves | Spotted B-75 Beast 3259 | -7/Lower Caves | Discovered new exit (range 15) 3263 | -7/Lower Caves | Entered another Lower Caves area 3265 | -7/Lower Caves | Discovered new exit (range 9) 3266 | -7/Lower Caves | Identified exit to Zion 3304 | -7/Lower Caves | Learned Factory stockpile data 3320 | -7/Lower Caves | Entered Zion 3362 | -7/Zion | Discovered new exit (range 15) 3430 | -7/Zion | Gained Derelict followers 3452 | -7/Zion | Given A8's code to call for help 3531 | -7/Zion | Found Prototype Launcher 3531 | -7/Zion | Identified Rocket Array 3640 | -7/Zion | Rebuked by Imprinter 3865 | -7/Zion | Discovered new exit (range 3) 3878 | -7/Zion | Enhanced Grunt warped into view, answering call for help 3890 | -7/Zion | Enhanced Grunt warped into view, answering call for help 3915 | -7/Zion | Entered Deep Caves 3915 | -7/Deep Caves | Accompanied by 8 allies 3984 | -7/Deep Caves | Attacked by Z-Imprinter 4024 | -7/Deep Caves | Core integrity fell below 50% 4037 | -7/Deep Caves | Core integrity fell below 20% 4059 | -7/Deep Caves | Destroyed by Z-Imprinter with Zionite Laser-M Last Messages --------------- 04017_ Enhanced Grunt overheating. 04018_ Enhanced Grunt destroyed. 04020_ Enh. Nuclear Core destroyed. 04022_ Acquired 10 matter. 04023_ Acquired Beamcaster. 04029_ Imp. Flight Unit destroyed. 04030_ GY-0R2(z) destroyed. 04033_ Beamcaster destroyed. 04033_ Spear destroyed. 04034_ Dropped Enh. Nuclear Core. 04036_ Acquired Prototype Energy Gun. 04037_ Acquired Prototype Reactor. 04037_ Identified Zio. Light DM Reactor. 04039_ Identified Zio. Laser-S. 04039_ Zio. Laser-S destroyed. 04040_ Dropped Zio. Light DM Reactor. 04040_ Acquired 15 matter. 04042_ Acquired Zio. Light DM Reactor. 04049_ Imp. Heat Sink destroyed. 04055_ Hacking Suite destroyed. Map ----- +----------------------------------------------------+ | | | | | | | | | | | | | | | | | | | | | | | | | ?????????????????????????????????????????????????? | | ##???????????????????????????????????????????????? | | ???????????????????????????????????####????????? | | ?????###????????????????????????## ##???????? | | ##?### ##?????######?????######## #???????? | | ## # #???### ##???## ##??????? | | ##### #???# #??????? | | #???# #??????? | | ##### #?###### | | #?# ## # #### ## | | ## ### ## ###?# | | #;# ### ### #??## | | ;;;;;## #?# #?## | | *%= *@!%! ;#?# ### | | =!==%!%*=% ;#?# | | ![%*%I%** ##?# ## | | !%%! =#!## ##??####### #### | | ####### #?????????# #??? | | ##?????# #?????????# #??? | | #??????# #????????## ##??? | | #??????# ###?????## ##?### | | #?????# ####### #?# # | | #?????# ## | | #?????# | | ##?????# | | #??????## ### | | ???????## ##?## ##### | | ??? ???????## ##???# #???? | | ????? #??????## #????## ##??? | | ?????????? ##?????## ##?????# ##?? | | ???????????? ???????# ##??????# ##? | | ??????????????? ??????## #???????## ## | | ????????????????? ??????# ##???????## # | | ???????????????????????????# ##???????# | | ???????????????????????????# ##??????# # | | ???????????????????????????# ##?????# # | | ???????????????????????????# ####??# ## | | ???????????????????????????## ##?# ##### | +----------------------------------------------------+ Best States ------------- Heat Dissipation 48 Coolant Potential 50 Energy Generation 29 Energy Capacity 500 Matter Stores 300 Matter Capacity 300 Sight Range 16 Terrain Scan Density 10 Additional Mass Support 9 Armor Coverage 150 Evasion (%) 64 Core Analysis 6 Offensive Hacking 31 Item Schematics ----------------- Lgt. Angular Momentum Engine | -9/Materials | Scanalyzed Hacking Suite | -9/Materials | Scanalyzed Med. Storage Unit | -9/Materials | Scanalyzed Imp. Flight Unit | -9/Materials | Scanalyzed Robot Schematics ------------------ None Fabricated ------------ Imp. Flight Unit | x1 | -7/Factory Imp. Flight Unit | x1 | -7/Factory Alien Tech Used ----------------- None Achievements -------------- None Challenges ------------ None Game ------ Seed ShrapnelGuidanceBeamcaster Manual? 0 Play Time 00:54:00 Cumulative 286.3 hours Start 2020.05.11 @ 01:48:16 End 2020.05.11 @ 02:41:26 Sessions 1 Manual Loads 0 Difficulty Rogue Special Mode None Game No. 316 Rogue 316 Adventurer 0 Explorer 0 Win Type - Total 26 Types 16/3/1/1/2/0/3 Lore% 91 Gallery% 86 Achievement% 76 Wizard Run 0 Options --------- ASCII 0 Keyboard 0 Movement Arrows Keybinds 0 Fullscreen 1 Font 18/SmallcapsGlow Map View 76x50 Tactical HUD 1 Map Filters NONE Filters NONE Steam 1 RUN: 18585077-2b78-442d-a59d-957e5a5ee3f4